bitfinex/quotes_BTCUSD_20210101
["timestamp","ask_amount","ask_price","bid_price","bid_amount"]
[1609526525379,0.965,28965.0,28964.0,0.53995413]
[1609526525567,2.37081193,28965.0,28964.0,0.53995413]
[1609526525766,2.72581193,28965.0,28964.0,0.53995413]
[1609526526072,3.88510123,28965.0,28964.0,0.53295413]
[1609526526369,5.59055107,28965.0,28964.0,0.19295413]
[1609526526567,9.53735409,28965.0,28964.0,0.03298637]
[1609526526772,0.965,28963.0,28962.0,0.50037191]
[1609526527071,0.12,28961.0,28959.0,0.16715267]
[1609526527267,1.732242,28960.0,28959.0,0.14895267]
[1609526527467,1.83650177,28959.0,28958.0,0.03476731]
[1609526527673,1.115,28958.0,28957.0,0.36298906]
[1609526527972,2.55238518,28958.0,28957.0,0.46038427]
[1609526528163,3.53111185,28958.0,28957.0,0.3410303]
[1609526528363,3.53111185,28958.0,28957.0,0.06296819]
[1609526528569,1.98632209,28957.0,28956.0,0.0004]
[1609526528772,1.085,28956.0,28955.0,3.31820685]
[1609526529064,4.52190425,28956.0,28955.0,3.29280685]
[1609526529259,4.75563092,28956.0,28955.0,3.27290535]
[1609526529461,4.75563092,28956.0,28955.0,3.03230535]
[1609526529663,4.75063092,28956.0,28955.0,2.95721441]
[1609526529974,0.965,28945.0,28936.0,0.0018]
[1609526530174,1.38528686,28942.0,28941.0,0.02974343]
[1609526530397,1.79680302,28941.0,28940.0,0.35838505]
[1609526530591,3.69261495,28941.0,28940.0,0.35838505]
[1609526530785,3.90190425,28941.0,28940.0,0.29338505]
[1609526530994,2.79430883,28941.0,28940.0,0.26838505]
[1609526531187,2.79430883,28941.0,28940.0,0.26338505]
[1609526531390,2.82580347,28941.0,28940.0,0.26338505]
[1609526531788,3.02090347,28941.0,28940.0,0.26338505]
[1609526531992,3.71019277,28941.0,28940.0,0.26338505]
[1609526532192,3.97019277,28941.0,28940.0,0.24298505]
[1609526532489,3.97019277,28941.0,28940.0,0.18348304]
[1609526532690,3.97019277,28941.0,28940.0,0.07240059]
[1609526532691,4.30199579,28941.0,28940.0,0.07240059]
[1609526532886,4.30199579,28941.0,28940.0,0.02333835]
[1609526533088,4.30199579,28941.0,28940.0,0.01404835]
[1609526533290,2.74185502,28940.0,28939.0,0.08193587]
[1609526533490,4.26076518,28940.0,28939.0,0.08193587]
[1609526533697,4.50005448,28940.0,28939.0,0.00339333]
[1609526533902,2.51847502,28939.0,28938.0,0.22405052]
[1609526534094,4.02799409,28939.0,28938.0,0.18405052]
[1609526534295,4.97784666,28939.0,28938.0,0.05762508]
[1609526534498,5.94744287,28939.0,28938.0,0.03984035]
[1609526534692,6.31562287,28939.0,28938.0,0.03984035]
[1609526534893,5.8061038,28939.0,28938.0,0.03984035]
[1609526535094,7.14234167,28939.0,28938.0,0.03204035]
[1609526535293,6.98135287,28939.0,28938.0,0.03104035]
[1609526535493,6.98135287,28939.0,28938.0,0.03064035]
[1609526535696,12.14234167,28939.0,28938.0,0.03064035]
[1609526535942,1.28180302,28938.0,28930.0,0.18597281]
[1609526536144,0.366672,28936.0,28935.0,0.55014208]
[1609526536443,0.366672,28936.0,28935.0,0.45416707]
[1609526536444,1.43738518,28936.0,28935.0,0.45416707]
[1609526536635,2.85738518,28936.0,28935.0,0.45416707]
[1609526536947,2.55704532,28936.0,28935.0,0.45416707]
[1609526537239,2.55704532,28936.0,28935.0,3.14916707]
[1609526537437,1.13704532,28936.0,28935.0,3.14916707]
[1609526538035,1.13704532,28936.0,28935.0,5.94916707]
[1609526538435,0.28204532,28936.0,28935.0,7.14916707]
[1609526538635,0.366727,28936.0,28935.0,7.14916707]
[1609526538942,0.366727,28936.0,28935.0,7.30916707]
[1609526539138,1.0368,28936.0,28935.0,7.27916707]
[1609526539349,0.33180302,28938.0,28937.0,6.75]
[1609526539544,5.0,28939.0,28937.0,6.75]
[1609526539822,0.366727,28938.0,28937.0,6.91]
[1609526540323,0.600007,28938.0,28937.0,6.91]
[1609526540621,0.23328,28938.0,28937.0,7.276727]
[1609526541321,0.22328,28938.0,28937.0,7.794527]
[1609526542024,0.22328,28938.0,28937.0,2.41]
[1609526542025,0.590007,28938.0,28937.0,2.41]
[1609526542320,0.560007,28938.0,28937.0,6.7]
[1609526542516,0.55565149,28938.0,28937.0,6.7]
[1609526542717,0.57139858,28938.0,28937.0,6.7]
[1609526542916,0.57139858,28938.0,28937.0,3.8]
[1609526543122,0.57139858,28938.0,28937.0,3.801]
[1609526543320,0.94639858,28938.0,28937.0,3.801]
[1609526543915,0.94639858,28938.0,28937.0,6.701]
[1609526544218,0.57139858,28938.0,28937.0,6.701]
[1609526544417,0.57139858,28938.0,28937.0,6.696]
[1609526544716,0.57139858,28938.0,28937.0,0.001]
[1609526544921,1.52639858,28938.0,28937.0,0.001]
[1609526545123,2.76973174,28938.0,28937.0,0.001]
[1609526545538,1.81473174,28938.0,28937.0,0.001]
[1609526545943,1.81473174,28938.0,28937.0,2.601]
[1609526546145,1.59627174,28938.0,28936.0,0.0002]
[1609526546342,1.59627174,28938.0,28935.0,0.31916707]
[1609526546343,0.33180302,28936.0,28935.0,0.31936707]
[1609526546539,0.55565149,28936.0,28935.0,0.31936707]
[1609526546743,0.79065149,28936.0,28935.0,0.31936707]
[1609526546946,1.02312163,28936.0,28935.0,2.21916707]
[1609526547145,1.01812163,28936.0,28935.0,0.31916707]
[1609526547340,1.01812163,28936.0,28935.0,0.31943314]
[1609526547539,1.97312163,28936.0,28935.0,0.31943314]
[1609526547944,1.98885292,28936.0,28935.0,0.31443314]
[1609526548140,1.03385292,28936.0,28935.0,0.31443314]
[1609526548642,1.03385292,28936.0,28931.0,0.56791094]
[1609526548852,1.03385292,28936.0,28931.0,4.6229962]
[1609526548853,0.366727,28932.0,28931.0,4.6229962]
[1609526549049,0.55565149,28932.0,28931.0,4.6229962]
[1609526549545,0.55565149,28932.0,28931.0,4.5229962]
[1609526549942,0.55565149,28932.0,28931.0,5.4229962]
[1609526550152,0.55565149,28932.0,28931.0,0.2179962]
[1609526550646,0.53065149,28932.0,28931.0,0.2079962]
[1609526550844,0.76437816,28932.0,28931.0,2.2579962]
[1609526551104,0.76437816,28932.0,28931.0,2.2529962]
[1609526551708,0.76437816,28932.0,28931.0,2.2479962]
[1609526551911,0.53065149,28932.0,28931.0,6.8979962]
[1609526552111,0.17892449,28932.0,28931.0,7.4747372]
[1609526552405,4.49e-06,28932.0,28931.0,7.4747372]
[1609526552844,0.01573129,28936.0,28931.0,7.4697372]
[1609526553011,0.01573129,28936.0,28933.0,0.5179]
[1609526553205,0.01573129,28936.0,28934.0,0.366749]
[1609526553409,0.01573129,28936.0,28935.0,7.3748]
[1609526553607,0.01573129,28936.0,28935.0,7.901549]
[1609526553808,0.38248029,28936.0,28935.0,3.8748]
[1609526554006,0.37748029,28936.0,28935.0,7.3248]
[1609526554206,0.37748029,28936.0,28935.0,3.8748]
[1609526554754,0.37748029,28936.0,28935.0,3.8598]
[1609526555312,0.36748029,28936.0,28935.0,0.6098]
[1609526555519,0.366749,28935.0,28933.0,0.8126]
[1609526555719,0.366749,28934.0,28933.0,0.0002]
[1609526555915,0.5277378,28934.0,28933.0,0.0002]
[1609526556118,0.5277378,28934.0,28931.0,0.1931962]
[1609526556315,0.366749,28932.0,28931.0,0.1931962]
[1609526556675,0.361749,28932.0,28931.0,4.8929962]
[1609526556868,0.59547567,28932.0,28931.0,4.8901522]
[1609526557068,0.59047567,28932.0,28931.0,4.8801522]
[1609526557375,2.60646447,28932.0,28931.0,0.1801522]
[1609526557578,1.321749,28931.0,28930.0,0.18557281]
[1609526557871,2.20355202,28931.0,28930.0,0.18091895]
[1609526558069,2.67355202,28931.0,28930.0,0.14159164]
[1609526558269,2.8789951,28931.0,28930.0,0.14159164]
[1609526558516,2.8789951,28931.0,28929.0,0.36505257]
[1609526558517,1.65355502,28930.0,28929.0,0.36505257]
[1609526558716,0.96878479,28930.0,28929.0,0.01965256]
[1609526558913,8.05773375,28930.0,28929.0,0.01405256]
[1609526559118,8.78164495,28930.0,28929.0,0.00245256]
[1609526559317,8.78164495,28930.0,28927.0,0.23722856]
[1609526559318,0.43180302,28929.0,28927.0,0.23722856]
[1609526559512,8.3279181,28928.0,28927.0,0.22042856]
[1609526559715,8.3279181,28928.0,28925.0,0.2667754]
[1609526559716,1.075,28927.0,28925.0,0.2667754]
[1609526559917,3.10906289,28926.0,28925.0,0.2667754]
[1609526560213,5.15,28925.0,28924.0,0.96939119]
[1609526560418,0.12,28924.0,28923.0,0.00229]
[1609526560615,6.78022977,28923.0,28922.0,0.55581315]
[1609526560817,3.36884289,28923.0,28922.0,0.54913315]
[1609526561112,4.42050799,28923.0,28922.0,0.4662061]
[1609526561310,3.05550799,28923.0,28922.0,0.4662061]
[1609526561507,6.86127167,28923.0,28922.0,0.1162661]
[1609526561709,8.66127167,28923.0,28922.0,0.0914461]
[1609526561919,8.66127167,28923.0,28907.0,0.57105427]
[1609526561920,0.46027672,28921.0,28907.0,0.57105427]
[1609526562114,8.19707974,28921.0,28920.0,0.05412634]
[1609526562321,1.855,28920.0,28919.0,0.0002]
[1609526562521,6.721752,28919.0,28918.0,1.19166933]
[1609526562719,0.955,28916.0,28914.0,0.96946116]
[1609526562925,2.8,28913.0,28911.0,0.06017467]
[1609526563120,3.805,28911.0,28910.0,1.32961908]
[1609526563319,5.01225987,28911.0,28910.0,0.65619835]
[1609526563518,6.02753101,28911.0,28909.0,0.03478474]
[1609526563729,0.95,28908.0,28907.0,0.55673257]
[1609526563920,1.738012,28908.0,28907.0,0.55673257]
[1609526564334,1.74900915,28908.0,28907.0,0.55673257]
[1609526564732,3.68923892,28908.0,28907.0,0.54173257]
[1609526564933,5.25115194,28908.0,28907.0,0.53993257]
[1609526565133,6.50260895,28908.0,28907.0,0.53853257]
[1609526565434,6.50260895,28908.0,28907.0,0.32830607]
[1609526565435,6.99260895,28908.0,28907.0,0.32830607]
[1609526565638,6.99260895,28908.0,28907.0,0.32490607]
[1609526565832,3.90237918,28908.0,28907.0,0.31250607]
[1609526566034,4.76717918,28908.0,28907.0,0.31250607]
[1609526566238,3.59526616,28908.0,28907.0,0.27813906]
[1609526566537,3.58403892,28908.0,28907.0,0.25313906]
[1609526566737,3.59381915,28908.0,28907.0,0.25313906]
[1609526566938,4.55909029,28908.0,28907.0,0.24813906]
[1609526567139,3.16774915,28908.0,28907.0,0.24813906]
[1609526567336,2.71978585,28908.0,28907.0,0.24813906]
[1609526567539,1.38713617,28908.0,28907.0,0.24813906]
[1609526567744,0.38752894,28908.0,28907.0,3.64813906]
[1609526568253,0.37774915,28908.0,28907.0,3.69813906]
[1609526568746,0.37774915,28908.0,28907.0,7.10813906]
[1609526568942,0.37774915,28908.0,28907.0,3.85813906]
[1609526569136,0.37774915,28908.0,28907.0,3.75913906]
[1609526569339,0.37774915,28908.0,28907.0,3.74913906]
[1609526569794,0.37774915,28908.0,28907.0,6.39913906]
[1609526569991,0.37274915,28908.0,28907.0,6.39413906]
[1609526570189,0.37274915,28908.0,28907.0,3.74413906]
[1609526570393,1.32274915,28908.0,28907.0,0.34413906]
[1609526570593,1.32274915,28908.0,28907.0,1.03413906]
[1609526570785,1.32274915,28908.0,28907.0,0.13413906]
[1609526571200,1.32274915,28908.0,28903.0,0.57005068]
[1609526571201,0.366752,28904.0,28903.0,0.57005068]
[1609526571392,1.316752,28904.0,28903.0,0.57005068]
[1609526571591,0.366752,28904.0,28903.0,1.77005068]
[1609526571797,1.316752,28904.0,28903.0,1.77005068]
[1609526572104,0.366752,28904.0,28903.0,1.77005068]
[1609526572295,1.316752,28904.0,28903.0,1.74505068]
[1609526572491,0.366752,28904.0,28903.0,1.65505068]
[1609526572697,0.366752,28904.0,28903.0,5.15505068]
[1609526573202,0.00599715,28908.0,28903.0,5.78180268]
[1609526573401,0.366752,28907.0,28903.0,5.36505068]
[1609526574097,0.366752,28904.0,28903.0,5.36505068]
[1609526574296,0.366752,28904.0,28903.0,7.31505068]
[1609526574490,0.366752,28904.0,28903.0,5.36505068]
[1609526575296,0.366752,28904.0,28903.0,1.86505068]
[1609526575506,0.366752,28904.0,28903.0,1.65505068]
[1609526575909,0.366752,28904.0,28903.0,0.45505068]
[1609526576607,0.366752,28904.0,28903.0,3.20505068]
[1609526577214,0.46958933,28904.0,28903.0,3.20505068]
[1609526577401,0.46958933,28904.0,28903.0,3.25505068]
[1609526577603,0.46958933,28904.0,28903.0,5.25505068]
[1609526578010,0.46958933,28904.0,28903.0,7.15505068]
[1609526578208,0.46958933,28904.0,28903.0,3.76505068]
[1609526578404,0.10283733,28904.0,28903.0,4.08180268]
[1609526578607,0.46958933,28904.0,28903.0,6.66505068]
[1609526578807,0.46958933,28904.0,28903.0,6.71505068]
[1609526579008,0.46958933,28904.0,28903.0,6.66505068]
[1609526579208,0.46958933,28904.0,28903.0,3.71505068]
[1609526579610,0.46958933,28904.0,28903.0,4.51505068]
[1609526580116,0.46958933,28904.0,28903.0,1.71505068]
[1609526581467,0.46958933,28904.0,28903.0,5.81005068]
[1609526581878,0.46958933,28904.0,28903.0,6.36005068]
[1609526582176,0.46958933,28904.0,28903.0,1.71005068]
[1609526582682,0.46958933,28904.0,28903.0,4.46005068]
[1609526582927,0.10283733,28904.0,28903.0,3.82680268]
[1609526583124,0.15268415,28908.0,28903.0,3.46005068]
[1609526583325,0.15268415,28908.0,28903.0,3.41005068]
[1609526584135,7.89e-06,28916.0,28904.0,6.65]
[1609526584436,0.08,28925.0,28905.0,0.13539899]
[1609526584630,0.00589606,28926.0,28906.0,0.6756]
[1609526584631,0.08,28926.0,28906.0,0.6756]
[1609526584897,0.34805914,28931.0,28912.0,0.1337]
[1609526585093,0.34805914,28931.0,28921.0,0.6906]
[1609526585094,0.08,28931.0,28921.0,0.6906]
[1609526585292,0.08,28931.0,28921.0,0.88633]
[1609526585480,0.215,28931.0,28921.0,0.88133]
[1609526585880,0.366903,28930.0,28921.0,0.88133]
[1609526586084,0.08,28929.0,28921.0,0.88133]
[1609526586384,0.08,28929.0,28922.0,0.5179]
[1609526586583,0.03,28930.0,28923.0,6.65]
[1609526586829,0.366903,28928.0,28923.0,6.775]
[1609526587022,0.17,28930.0,28923.0,6.775]
[1609526587324,0.02,28930.0,28924.0,0.0002]
[1609526587727,0.366903,28929.0,28924.0,0.0002]
[1609526587922,0.361903,28929.0,28922.0,0.5181]
[1609526588126,0.361903,28929.0,28922.0,0.0002]
[1609526588427,0.366903,28927.0,28921.0,0.6708]
[1609526588722,0.02,28928.0,28921.0,0.6708]
[1609526588929,0.02,28930.0,28921.0,0.6708]
[1609526589118,0.02,28930.0,28921.0,0.8614]
[1609526589326,0.366895,28929.0,28921.0,0.8614]
[1609526589523,0.5278838,28929.0,28921.0,0.8614]
[1609526589721,0.25,28922.0,28921.0,0.8614]
[1609526590557,0.28363588,28922.0,28921.0,7.51162625]
[1609526590746,0.26363588,28922.0,28921.0,0.86162625]
[1609526590954,0.27863588,28922.0,28921.0,5.11162625]
[1609526591156,0.59553088,28922.0,28921.0,2.13662625]
[1609526591350,0.59553088,28922.0,28921.0,1.30022625]
[1609526591652,0.59553088,28922.0,28921.0,3.98522625]
[1609526592252,0.22863588,28922.0,28921.0,3.98522625]
[1609526592450,0.22863588,28922.0,28921.0,6.68522625]
[1609526592852,0.22863588,28922.0,28921.0,4.50332625]
[1609526593055,0.22863588,28922.0,28921.0,1.80332625]
[1609526593056,0.59553088,28922.0,28921.0,1.80332625]
[1609526593453,0.59553088,28922.0,28921.0,3.69332625]
[1609526594254,0.59553088,28922.0,28921.0,1.79332625]
[1609526594552,0.59553088,28922.0,28921.0,2.22522625]
[1609526594854,0.22863588,28922.0,28921.0,2.22522625]
[1609526595357,0.59553088,28922.0,28921.0,6.67522625]
[1609526596176,0.59053088,28922.0,28921.0,6.67522625]
[1609526596376,0.59053088,28922.0,28921.0,4.02522625]
[1609526596678,0.57553088,28922.0,28921.0,6.67522625]
[1609526596983,0.20863588,28922.0,28921.0,6.89710625]
[1609526597378,0.83502677,28932.0,28921.0,6.89710625]
[1609526597584,0.83002677,28932.0,28922.0,0.2584805]
[1609526597781,0.83002677,28932.0,28922.0,0.2586805]
[1609526597981,0.83002677,28932.0,28923.0,0.2584805]
[1609526598189,0.83002677,28932.0,28922.0,0.9490805]
[1609526598381,0.83002677,28932.0,28923.0,0.0802]
[1609526598582,0.83002677,28932.0,28923.0,0.0002]
[1609526598779,0.83002677,28932.0,28923.0,0.6787]
[1609526598978,0.83002677,28932.0,28923.0,0.78642233]
[1609526599178,0.82011221,28932.0,28923.0,0.78642233]
[1609526599383,0.82011221,28932.0,28923.0,0.8037]
[1609526599582,0.82011221,28932.0,28924.0,1.0]
[1609526599844,0.82011221,28932.0,28925.0,0.23292233]
[1609526600102,0.82011221,28932.0,28925.0,0.35059233]
[1609526600303,0.79011221,28932.0,28925.0,0.35079233]
[1609526600508,0.78511221,28932.0,28926.0,0.6353]
[1609526600704,0.94610101,28932.0,28926.0,0.74322233]
[1609526601007,0.14,28931.0,28926.0,0.74342233]
[1609526601206,0.3009888,28931.0,28926.0,0.74342233]
[1609526601409,0.366895,28930.0,28926.0,0.565575]
[1609526601615,0.366895,28927.0,28926.0,0.565375]
[1609526601856,0.14,28931.0,28926.0,0.565375]
[1609526602050,0.1559888,28929.0,28926.0,0.565375]
[1609526602357,0.366895,28927.0,28926.0,0.565375]
[1609526602550,0.5228838,28927.0,28926.0,0.565375]
[1609526603054,0.14,28931.0,28926.0,0.565375]
[1609526603351,0.366895,28930.0,28926.0,0.720715]
[1609526603552,0.366895,28930.0,28926.0,0.720915]
[1609526604351,0.1559888,28929.0,28926.0,0.565575]
[1609526604558,0.1559888,28929.0,28926.0,0.560575]
[1609526604559,0.366895,28927.0,28926.0,0.560575]
[1609526604754,0.5228838,28927.0,28923.0,0.0002]
[1609526604957,0.1559888,28927.0,28923.0,0.0002]
[1609526605258,0.366895,28930.0,28922.0,0.6714]
[1609526605476,0.18,28929.0,28922.0,0.6714]
[1609526605680,0.366895,28928.0,28922.0,0.6714]
[1609526606178,0.5178838,28928.0,28922.0,0.6714]
[1609526606675,0.366895,28928.0,28922.0,0.6714]
[1609526607073,0.18,28929.0,28922.0,0.6714]
[1609526607282,0.10414484,28930.0,28922.0,0.6714]
[1609526607681,0.78511221,28932.0,28922.0,0.6714]
[1609526607874,0.78511221,28932.0,28922.0,0.7964]
[1609526608573,0.88852401,28932.0,28922.0,0.7964]
[1609526608975,0.88352401,28932.0,28922.0,0.7964]
[1609526609181,0.366895,28931.0,28926.0,0.5179]
[1609526609376,0.185,28930.0,28926.0,0.5179]
[1609526609677,0.185,28930.0,28922.0,0.6714]
[1609526610074,0.185,28930.0,28922.0,0.7964]
[1609526610280,0.78011221,28932.0,28922.0,0.6714]
[1609526610474,0.78011221,28932.0,28922.0,0.7964]
[1609526610675,0.78011221,28932.0,28922.0,0.84438]
[1609526610878,0.78011221,28932.0,28922.0,0.71938]
[1609526611102,0.78011221,28932.0,28923.0,0.5181]
[1609526611309,0.366895,28931.0,28923.0,0.5181]
[1609526611507,0.19,28930.0,28923.0,0.5181]
[1609526611906,0.185,28930.0,28923.0,0.5181]
[1609526612507,0.77011221,28932.0,28923.0,0.5181]
[1609526612905,0.77011221,28932.0,28923.0,0.62251826]
[1609526613704,0.77011221,28932.0,28923.0,0.5181]
[1609526614939,0.77011221,28932.0,28923.0,0.62052677]
[1609526615137,0.77011221,28932.0,28924.0,0.653]
[1609526615439,0.77011221,28932.0,28924.0,0.6532]
[1609526616339,0.78110165,28932.0,28924.0,0.6532]
[1609526617378,0.78110165,28932.0,28924.0,0.75611071]
[1609526617576,0.78110165,28932.0,28924.0,0.6532]
[1609526618483,0.93209045,28932.0,28924.0,0.6532]
[1609526618684,0.501895,28931.0,28924.0,0.6532]
[1609526619284,1.0,28930.0,28924.0,0.6532]
[1609526619596,0.366895,28927.0,28924.0,0.653]
[1609526619783,1.366895,28927.0,28924.0,0.653]
[1609526619985,0.366895,28925.0,28924.0,0.653]
[1609526620276,0.566895,28925.0,28924.0,0.653]
[1609526620505,0.366895,28925.0,28924.0,0.653]
[1609526621711,0.366895,28925.0,28924.0,0.75709312]
[1609526621914,0.37788597,28925.0,28924.0,0.653]
[1609526622609,0.57788597,28925.0,28924.0,0.653]
[1609526622809,0.37788597,28925.0,28924.0,0.653]
[1609526623110,0.57788597,28925.0,28924.0,1.828]
[1609526623509,0.57788597,28925.0,28924.0,0.73295399]
[1609526623708,0.37788597,28925.0,28924.0,0.73295399]
[1609526624112,0.37788597,28925.0,28924.0,2.73295399]
[1609526624321,0.37788597,28925.0,28924.0,0.628]
[1609526625109,0.57788597,28925.0,28924.0,0.628]
[1609526625321,0.01099097,28925.0,28924.0,0.628]
[1609526626158,0.00099097,28925.0,28924.0,7.278]
[1609526626353,0.00099097,28925.0,28924.0,7.26671999]
[1609526626558,0.76110318,28932.0,28925.0,6.65]
[1609526626754,1.76110318,28932.0,28925.0,6.775]
[1609526626967,0.625895,28931.0,28925.0,0.0002]
[1609526627156,1.625895,28931.0,28925.0,0.0002]
[1609526627358,0.366895,28929.0,28924.0,0.518]
[1609526627552,0.1509888,28929.0,28924.0,0.418]
[1609526627855,0.366895,28928.0,28924.0,0.418]
[1609526629158,0.1509888,28929.0,28924.0,0.418]
[1609526630417,0.366895,28928.0,28924.0,0.418]
[1609526630616,0.50950098,28928.0,28924.0,0.418]
[1609526630820,0.50950098,28928.0,28923.0,0.0002]
[1609526631013,0.50950098,28928.0,28922.0,0.5]
[1609526631422,0.2591,28927.0,28922.0,0.5002]
[1609526631622,0.366895,28925.0,28922.0,0.5002]
[1609526632016,0.362895,28925.0,28922.0,0.5002]
[1609526632619,0.50550098,28925.0,28922.0,0.5002]
[1609526633719,0.135,28924.0,28922.0,0.5002]
[1609526633918,0.366895,28923.0,28922.0,0.5]
[1609526634331,1.99079846,28923.0,28922.0,0.5]
[1609526634528,2.3081238,28923.0,28922.0,0.5]
[1609526634725,4.0581238,28923.0,28922.0,0.15459999]
[1609526634922,2.25072978,28923.0,28922.0,0.15459999]
[1609526635328,2.45072978,28923.0,28922.0,0.15459999]
[1609526636145,2.03048978,28923.0,28922.0,0.15459999]
[1609526636345,1.23048978,28923.0,28922.0,0.15459999]
[1609526636537,1.22548978,28923.0,28922.0,0.15459999]
[1609526636843,1.02048978,28923.0,28922.0,0.15459999]
[1609526637043,2.02048978,28923.0,28922.0,0.15459999]
[1609526637245,2.2539579,28923.0,28922.0,0.15459999]
[1609526637444,2.2539579,28923.0,28915.0,0.0006]
[1609526637445,3.55,28922.0,28915.0,0.0006]
[1609526637643,0.5078848,28918.0,28915.0,0.0006]
[1609526637850,0.366896,28918.0,28915.0,0.0006]
[1609526638056,0.37,28923.0,28916.0,0.018982]
[1609526638246,0.27359478,28927.0,28915.0,0.0006]
[1609526638247,0.366896,28922.0,28915.0,0.0006]
[1609526638546,0.366896,28926.0,28916.0,0.018978]
[1609526638743,0.366896,28926.0,28915.0,0.6884]
[1609526638941,0.566896,28926.0,28915.0,0.6884]
[1609526639149,1.625996,28926.0,28915.0,0.6884]
[1609526639344,1.0,28925.0,28915.0,0.6884]
[1609526639550,0.366896,28924.0,28915.0,0.6884]
[1609526639943,0.366896,28925.0,28915.0,0.92877]
[1609526640843,0.1309888,28924.0,28915.0,0.92877]
[1609526641044,0.1309888,28924.0,28916.0,0.5181]
[1609526641265,0.366896,28923.0,28916.0,0.5181]
[1609526641461,0.366896,28923.0,28916.0,0.5183]
[1609526641863,0.50950198,28923.0,28916.0,0.5183]
[1609526642066,0.14260598,28923.0,28916.0,0.5183]
[1609526642265,0.14260598,28923.0,28917.0,0.0002014]
[1609526642568,0.366896,28922.0,28917.0,0.0002014]
[1609526642766,0.366896,28921.0,28917.0,0.0002014]
[1609526643765,0.50950198,28921.0,28917.0,0.0002014]
[1609526645524,0.50450198,28921.0,28917.0,0.0002014]
[1609526645727,0.50450198,28921.0,28915.0,0.6736014]
[1609526645930,0.14260598,28921.0,28916.0,0.018977]
[1609526646130,0.14260598,28923.0,28915.0,1.1918014]
[1609526646329,0.366899,28922.0,28915.0,1.1918014]
[1609526646981,0.40015916,28925.0,28915.0,1.1918014]
[1609526647181,0.13860598,28925.0,28915.0,1.1918014]
[1609526647380,0.366899,28924.0,28915.0,1.1918014]
[1609526647584,0.01229662,28921.0,28916.0,0.023976]
[1609526647883,0.01229662,28921.0,28915.0,1.1918014]
[1609526648185,0.01229662,28921.0,28917.0,0.023977]
[1609526648480,0.00829662,28921.0,28917.0,0.023977]
[1609526648710,0.00829662,28921.0,28915.0,1.1918014]
[1609526648911,0.00829662,28921.0,28916.0,0.023978]
[1609526649615,0.00829662,28921.0,28916.0,0.714778]
[1609526650918,0.1409026,28925.0,28917.0,6.65]
[1609526651322,0.1409026,28925.0,28918.0,0.023971]
[1609526651519,0.1409026,28925.0,28917.0,6.65]
[1609526651815,0.366899,28924.0,28917.0,6.65]
[1609526652016,0.14260598,28928.0,28918.0,0.02397]
[1609526652220,0.366899,28927.0,28917.0,6.65]
[1609526652416,0.366899,28927.0,28920.0,0.5181]
[1609526652618,0.366899,28927.0,28920.0,0.5031]
[1609526652818,0.50950498,28927.0,28920.0,0.5031]
[1609526653024,0.14260598,28927.0,28921.0,0.023962]
[1609526653336,0.15359776,28927.0,28923.0,0.023959]
[1609526653526,0.75710318,28932.0,28926.0,6.673955]
[1609526653827,0.75710318,28932.0,28930.0,0.21147]
[1609526654026,0.75710318,28932.0,28931.0,6.673936]
[1609526654222,0.71921313,28932.0,28931.0,6.673936]
[1609526654638,0.71421313,28932.0,28931.0,6.673936]
[1609526655047,0.71421313,28932.0,28931.0,0.013936]
[1609526655354,0.71421313,28932.0,28930.0,0.013938]
[1609526655543,0.71421313,28932.0,28929.0,0.5179]
[1609526655544,0.366891,28931.0,28929.0,0.5179]
[1609526655842,0.16,28930.0,28929.0,0.5179]
[1609526656349,0.526891,28930.0,28929.0,0.5179]
[1609526656547,0.526891,28930.0,28928.0,0.6905]
[1609526656851,0.366891,28929.0,28928.0,0.6905]
[1609526657249,1.366891,28929.0,28928.0,0.6905]
[1609526657463,0.366891,28925.0,28924.0,0.6719]
[1609526657758,1.566891,28925.0,28924.0,0.6719]
[1609526658147,1.561891,28925.0,28924.0,0.6719]
[1609526658559,1.561891,28925.0,28920.0,0.01]
[1609526658560,6.69535912,28925.0,28920.0,0.01]
[1609526658762,4.266891,28921.0,28920.0,0.01]
[1609526658955,1.88629792,28921.0,28920.0,0.01]
[1609526659150,1.88129792,28921.0,28920.0,0.01]
[1609526659352,2.26129792,28921.0,28920.0,0.01]
[1609526660608,3.61129792,28921.0,28920.0,0.01]
[1609526660804,5.71129792,28921.0,28920.0,0.005]
[1609526661004,2.26129792,28921.0,28920.0,0.005]
[1609526662504,2.10134792,28921.0,28920.0,0.005]
[1609526662909,0.951891,28921.0,28920.0,0.005]
[1609526663315,0.566891,28921.0,28920.0,0.005]
[1609526663513,1.566891,28921.0,28920.0,0.005]
[1609526663715,4.7,28920.0,28910.0,0.6664]
[1609526663918,0.366896,28918.0,28905.0,1.2146]
[1609526664118,0.366896,28918.0,28906.0,0.6109]
[1609526664119,0.366896,28916.0,28906.0,0.6109]
[1609526664314,0.0587,28922.0,28906.0,0.6109]
[1609526664315,0.23346812,28920.0,28906.0,0.6299]
[1609526664618,0.2591,28920.0,28906.0,0.6299]
[1609526664815,0.4591,28920.0,28906.0,0.7099]
[1609526665010,0.4591,28920.0,28906.0,0.6909]
[1609526665312,0.8251462,28919.0,28906.0,0.6109]
[1609526665514,0.6382502,28918.0,28906.0,0.6109]
[1609526665732,0.18,28918.0,28907.0,0.018996]
[1609526666037,0.2582502,28921.0,28909.0,0.6909]
[1609526666231,0.2582502,28923.0,28910.0,0.018988]
[1609526666438,0.41498,28921.0,28909.0,0.87431]
[1609526666637,0.361896,28920.0,28909.0,0.87431]
[1609526667135,1.0351262,28920.0,28910.0,0.6909]
[1609526667438,0.776876,28920.0,28910.0,0.6911]
[1609526667632,0.2591,28919.0,28910.0,0.6911]
[1609526667839,0.3669,28918.0,28910.0,0.6911]
[1609526668037,0.155,28917.0,28910.0,0.6911]
[1609526668242,0.56498,28917.0,28910.0,0.6911]
[1609526668935,0.41498,28917.0,28911.0,0.023991]
[1609526669134,0.41498,28917.0,28911.0,0.0002]
[1609526669532,0.41498,28917.0,28911.0,0.02399]
[1609526672558,0.2591,28916.0,28911.0,0.02399]
[1609526672763,0.67408,28916.0,28911.0,0.02399]
[1609526673667,0.67408,28916.0,28911.0,0.02419]
[1609526674265,0.41498,28916.0,28915.0,6.673986]
[1609526674575,0.41498,28916.0,28915.0,6.862996]
[1609526675128,0.41498,28916.0,28915.0,7.519296]